bitfinex-derivatives/quotes_BTCF0:USTF0_20250125
["timestamp","ask_amount","ask_price","bid_price","bid_amount"]
[1737830948112,0.6591195,104990.0,104980.0,0.22753013]
[1737830948309,0.711022,104990.0,104980.0,0.22753013]
[1737830949204,0.711022,104990.0,104980.0,0.22784196]
[1737830949814,0.64404874,104990.0,104960.0,0.55367747]
[1737830950013,0.2043495,104970.0,104960.0,0.55367747]
[1737830950415,0.2658495,104970.0,104960.0,0.55367747]
[1737830950617,0.2658495,104970.0,104960.0,0.19287747]
[1737830952524,0.2668495,104970.0,104960.0,0.19287747]
[1737830952716,0.2053495,104970.0,104960.0,0.19287747]
[1737830953022,0.2053495,104970.0,104960.0,0.27507997]
[1737830953627,0.2053495,104970.0,104960.0,0.22317747]
[1737830954120,0.2053495,104970.0,104960.0,0.25547747]
[1737830956023,0.2053495,104970.0,104960.0,0.19287747]
[1737830956225,0.2366495,104970.0,104960.0,0.19287747]
[1737830956422,0.2682495,104970.0,104960.0,0.16207747]
[1737830963730,0.2682495,104970.0,104960.0,0.19247747]
[1737830964424,0.2682495,104970.0,104960.0,0.55327747]
[1737830965025,0.2682495,104970.0,104960.0,0.19247747]
[1737830965627,0.2682495,104970.0,104960.0,0.55327747]
[1737830966918,0.2366495,104970.0,104960.0,0.55327747]
[1737830967124,0.2366495,104970.0,104960.0,0.19247747]
[1737830968927,0.2366495,104970.0,104960.0,0.04001847]
[1737830969231,0.2366495,104970.0,104960.0,0.00961847]
[1737830969432,0.2366495,104970.0,104950.0,0.51469795]
[1737830969433,0.152461,104960.0,104950.0,0.51469795]
[1737830969632,0.2043635,104960.0,104950.0,0.51469795]
[1737830971134,0.2043635,104960.0,104950.0,0.15389795]
[1737830971525,0.2053635,104960.0,104950.0,0.51469795]
[1737830972224,0.2053635,104960.0,104950.0,0.15389795]
[1737830972434,0.2053635,104960.0,104950.0,0.51469795]
[1737830972934,0.2053635,104960.0,104950.0,0.52421681]
[1737830974326,0.2053635,104960.0,104950.0,0.69494324]
[1737830975230,0.001,104960.0,104950.0,0.79874824]
[1737830975428,0.19936007,104970.0,104960.0,0.152461]
[1737830975734,0.19936007,104970.0,104960.0,0.6606635]
[1737830976334,0.19936007,104970.0,104960.0,0.608761]
[1737830976537,0.25126257,104970.0,104960.0,0.608761]
[1737830976733,0.40370857,104970.0,104960.0,0.182561]
[1737830977227,0.43460857,104970.0,104960.0,0.182561]
[1737830977935,0.43560857,104970.0,104960.0,0.182561]
[1737830978135,0.43560857,104970.0,104960.0,0.543361]
[1737830978339,0.43560857,104970.0,104960.0,0.182561]
[1737830979242,0.32183493,104970.0,104960.0,0.41009113]
[1737830980033,0.32183493,104970.0,104960.0,0.37999113]
[1737830982938,0.35016483,104970.0,104960.0,0.55135783]
[1737830987636,0.76286733,104970.0,104960.0,0.39889683]
[1737830987837,0.71096483,104970.0,104960.0,0.39889683]
[1737830991247,0.61512724,104970.0,104950.0,0.152474]
[1737830991548,0.183961,104960.0,104950.0,0.5651765]
[1737830991738,0.40677724,104970.0,104960.0,0.152461]
[1737830991938,0.40677724,104970.0,104960.0,0.513261]
[1737830993343,0.40577724,104970.0,104960.0,0.513261]
[1737830993549,0.40677724,104970.0,104960.0,0.513261]
[1737830995136,0.32201145,104970.0,104960.0,0.6846277]
[1737830997653,0.23920895,104970.0,104960.0,0.7365302]
[1737830997841,0.08675895,104970.0,104960.0,0.7997302]
[1737830999142,0.20091244,104970.0,104960.0,0.7997302]
[1737831000255,0.20091244,104970.0,104960.0,0.80906746]
[1737831004146,0.08675895,104970.0,104960.0,1.03659759]
[1737831010139,0.08675895,104970.0,104960.0,0.98469509]
[1737831012149,0.08675895,104970.0,104960.0,1.03659759]
[1737831020357,0.08675895,104970.0,104960.0,1.08850009]
[1737831020955,0.08675895,104970.0,104960.0,1.12185588]
[1737831021858,0.08675895,104970.0,104960.0,1.16355148]
[1737831022749,0.08675895,104970.0,104960.0,1.12185588]
[1737831023657,0.31307392,104990.0,104960.0,1.83529086]
[1737831023861,0.31307392,104990.0,104980.0,0.977837]
[1737831024062,0.31307392,104990.0,104980.0,0.9259345]
[1737831025854,0.31407392,104990.0,104980.0,0.9259345]
[1737831026057,0.51839342,104990.0,104980.0,0.152432]
[1737831026255,0.61409342,104990.0,104980.0,0.152432]
[1737831026651,0.61309342,104990.0,104980.0,0.152432]
[1737831027264,0.56119092,104990.0,104980.0,0.152432]
[1737831028163,0.248117,104990.0,104980.0,0.43251395]
[1737831028756,0.248117,104990.0,104980.0,0.44190312]
[1737831029466,0.248117,104990.0,104980.0,0.80270312]
[1737831029965,0.248117,104990.0,104980.0,0.44190312]
[1737831030366,0.248117,104990.0,104980.0,0.80270312]
[1737831030565,0.248117,104990.0,104980.0,0.44190312]
[1737831031865,0.248117,104990.0,104980.0,0.38479255]
[1737831036369,0.248117,104990.0,104980.0,0.74559255]
[1737831036758,0.248117,104990.0,104980.0,0.38479255]
[1737831036963,0.248117,104990.0,104980.0,0.74559255]
[1737831037163,0.248117,104990.0,104980.0,0.38479255]
[1737831042368,0.248117,104990.0,104980.0,0.74559255]
[1737831042673,0.36237208,105000.0,104990.0,0.152417]
[1737831042674,0.00157208,105000.0,104990.0,0.152417]
[1737831042874,0.00157208,105000.0,104990.0,0.5651195]
[1737831043976,0.00257208,105000.0,104990.0,0.5651195]
[1737831044377,0.03437208,105000.0,104990.0,0.5651195]
[1737831044578,0.06727208,105000.0,104990.0,0.5651195]
[1737831048777,0.06727208,105000.0,104990.0,0.68428588]
[1737831049285,0.06727208,105000.0,104990.0,0.73618838]
[1737831051689,0.06727208,105000.0,104990.0,0.96436783]
[1737831052586,0.09847208,105000.0,104990.0,0.96436783]
[1737831054099,0.09847208,105000.0,104990.0,0.91246533]
[1737831061590,0.06727208,105000.0,104990.0,0.96436783]
[1737831061795,0.06727208,105000.0,104990.0,0.99546783]
[1737831062102,0.00257208,105000.0,104990.0,0.99546783]
[1737831063997,0.00257208,105000.0,104990.0,0.82439895]
[1737831065204,0.00257208,105000.0,104990.0,0.85774561]
[1737831071909,0.00257208,105000.0,104990.0,1.43450945]
[1737831076502,0.00257208,105000.0,104990.0,1.20633]
[1737831086805,0.00257208,105000.0,104990.0,1.22488584]
[1737831087010,0.00257208,105000.0,104990.0,1.17298334]
[1737831088317,0.00257208,105000.0,104990.0,1.22488584]
[1737831088919,0.11671396,105000.0,104990.0,1.17298334]
[1737831090414,0.11671396,105000.0,104990.0,1.25823243]
[1737831091921,0.11671396,105000.0,104990.0,1.20632993]
[1737831094218,0.11671396,105000.0,104990.0,1.25823243]
[1737831094818,0.11671396,105000.0,104990.0,1.20632993]
[1737831096221,0.11671396,105000.0,104990.0,1.25823243]
[1737831096827,0.00114269,105000.0,104990.0,1.25823243]
[1737831097522,0.00114269,105000.0,104990.0,1.31013493]
[1737831097727,0.25683375,105010.0,105000.0,0.3081105]
[1737831097928,0.25683375,105010.0,105000.0,0.73405709]
[1737831098423,0.25683375,105010.0,105000.0,0.80405709]
[1737831098837,0.25683375,105010.0,105000.0,0.83625709]
[1737831099022,0.25883375,105010.0,105000.0,0.83625709]
[1737831100229,0.002,105010.0,105000.0,1.75188359]
[1737831101729,0.002,105010.0,105000.0,1.69998109]
[1737831101928,0.002,105010.0,105000.0,1.63598109]
[1737831103016,0.002,105010.0,105000.0,1.64543319]
[1737831104523,0.002,105010.0,105000.0,1.57543319]
[1737831104832,0.002,105010.0,105000.0,1.64539319]
[1737831107724,0.002,105010.0,105000.0,1.68706685]
[1737831109334,0.002,105010.0,105000.0,1.34820419]
[1737831110134,0.002,105010.0,105000.0,1.30653053]
[1737831115838,0.002,105010.0,105000.0,1.34820183]
[1737831117538,0.002,105010.0,105000.0,1.37990183]
[1737831117737,0.002,105010.0,105000.0,1.41250183]
[1737831118129,0.09434269,105020.0,105000.0,1.26009883]
[1737831118329,0.09434269,105020.0,105010.0,0.5650905]
[1737831118530,0.09434269,105020.0,105010.0,0.59843709]
[1737831119142,0.09534269,105020.0,105010.0,0.59843709]
[1737831121832,0.09534269,105020.0,105010.0,1.40312624]
[1737831125845,0.09534269,105020.0,105010.0,1.17520093]
[1737831128946,0.09534269,105020.0,105010.0,1.21687254]
[1737831130754,0.09534269,105020.0,105010.0,1.18352595]
[1737831130955,0.09534269,105020.0,105010.0,1.14185434]
[1737831135658,0.09534269,105020.0,105010.0,1.17519491]
[1737831137960,0.20948457,105020.0,105010.0,1.11050636]
[1737831138162,0.36185857,105020.0,105010.0,1.11050636]
[1737831143563,0.36185857,105020.0,105010.0,1.05860386]
[1737831143766,0.77456107,105020.0,105010.0,0.58540468]
[1737831144162,0.77456107,105020.0,105010.0,0.55206404]
[1737831147869,0.91725294,105020.0,105010.0,0.152388]
[1737831149171,0.55645294,105020.0,105010.0,0.152388]
[1737831149872,0.55645294,105020.0,105000.0,0.76992814]
[1737831149873,0.45598144,105020.0,105000.0,0.76992814]
[1737831150067,0.2042905,105010.0,105000.0,0.92232514]
[1737831151965,0.2042905,105010.0,105000.0,0.97422764]
[1737831153770,0.2042905,105010.0,105000.0,0.92232514]
[1737831157979,0.28982682,105010.0,105000.0,0.69391225]
[1737831161482,0.4039687,105010.0,105000.0,0.5226491]
[1737831162276,0.4039687,105010.0,105000.0,0.55599391]
[1737831163882,0.3520662,105010.0,105000.0,0.60789641]
[1737831164785,0.3520662,105010.0,105000.0,0.77915956]
[1737831165177,0.3520662,105010.0,105000.0,0.74581475]
[1737831165883,0.3520662,105010.0,105000.0,0.69391225]
[1737831172476,0.3520662,105010.0,105000.0,0.72725706]
[1737831173983,0.3520662,105010.0,105000.0,0.69391225]
[1737831175879,0.40922175,105010.0,105000.0,0.92232514]
[1737831178683,0.40922175,105010.0,105000.0,0.95566995]
[1737831181782,0.26652988,105010.0,105000.0,1.3576678]
[1737831186198,0.35220926,105010.0,105000.0,1.3576678]
[1737831197604,0.35220926,105010.0,105000.0,0.95573217]
[1737831202201,0.35220926,105010.0,105000.0,0.92238736]
[1737831202597,0.40411176,105010.0,105000.0,0.95573195]
[1737831204602,0.46112425,105010.0,105000.0,0.95573195]
[1737831208611,0.40922175,105010.0,105000.0,0.95573195]
[1737831208805,0.46112425,105010.0,105000.0,0.95573195]
[1737831210609,0.40922175,105010.0,105000.0,0.95573195]
[1737831219502,0.25683375,105010.0,105000.0,0.97428986]
[1737831219701,0.25683375,105010.0,105000.0,1.00763348]
[1737831220009,0.25683375,105010.0,105000.0,0.89970811]
[1737831220010,0.19979208,105010.0,105000.0,0.89970811]
[1737831220802,0.19979208,105010.0,105000.0,0.89970796]
[1737831221512,0.19979208,105010.0,105000.0,0.95161046]
[1737831224209,0.19979208,105010.0,105000.0,1.29851725]
[1737831228021,0.0856502,105010.0,105000.0,1.29851725]
[1737831229813,0.0856502,105010.0,105000.0,1.24661475]
[1737831231217,0.0856502,105010.0,105000.0,1.47506146]
[1737831236825,0.0856502,105010.0,105000.0,1.44436146]
[1737831242629,0.0856502,105010.0,105000.0,1.21591475]
[1737831243329,0.0856502,105010.0,105000.0,1.18321475]
[1737831246535,0.0856502,105010.0,105000.0,1.23511725]
[1737831246944,0.0856502,105010.0,105000.0,1.27679436]
[1737831249848,0.0856502,105010.0,105000.0,1.61565702]
[1737831251145,0.0856502,105010.0,105000.0,1.68045702]
[1737831252350,0.25697644,105020.0,105000.0,1.66259273]
[1737831252549,0.25697644,105020.0,105010.0,0.649893]
[1737831252736,0.25697644,105020.0,105010.0,0.63133397]
[1737831253836,0.25697644,105020.0,105010.0,0.68323647]
[1737831254444,0.00114269,105020.0,105010.0,0.68323647]
[1737831255841,0.001,105020.0,105010.0,0.53084847]
[1737831256044,0.25569106,105030.0,105010.0,0.53084847]
[1737831256246,0.25569106,105030.0,105020.0,0.534405]
[1737831256547,0.25569106,105030.0,105020.0,0.83432497]
[1737831256748,0.25569106,105030.0,105020.0,0.78242247]
[1737831257941,0.25769106,105030.0,105020.0,0.78242247]
[1737831258354,0.002,105030.0,105020.0,0.78242247]
[1737831258550,0.00014269,105040.0,105030.0,0.152359]
[1737831258749,0.31450269,105050.0,105030.0,0.53034847]
[1737831259048,0.31293123,105050.0,105040.0,0.61695]
[1737831259254,0.31293123,105050.0,105040.0,0.68169347]
[1737831260543,0.31293123,105050.0,105040.0,0.71459347]
[1737831261854,0.31593123,105050.0,105040.0,0.71459347]
[1737831263355,0.003,105050.0,105040.0,1.11253153]
[1737831264154,0.003,105050.0,105040.0,1.07918806]
[1737831266861,0.003,105050.0,105040.0,0.85179488]
[1737831267765,0.003,105050.0,105040.0,0.8611987]
[1737831268457,0.003,105050.0,105040.0,0.9131012]
[1737831268757,0.06534269,105060.0,105050.0,0.15233]
[1737831268960,0.03314269,105060.0,105050.0,0.616935]
[1737831269759,0.03314269,105060.0,105050.0,0.68225771]
[1737831270154,0.03314269,105060.0,105050.0,0.75201771]
[1737831270957,0.03614269,105060.0,105050.0,0.75201771]
[1737831271554,0.03314269,105060.0,105050.0,0.75201771]
[1737831271859,0.03514269,105060.0,105050.0,0.75201771]
[1737831272465,0.00214269,105060.0,105050.0,0.75201771]
[1737831274465,0.0322,105070.0,105060.0,0.152316]
[1737831274767,0.0322,105070.0,105060.0,0.616921]
[1737831275559,0.0352,105070.0,105060.0,0.616921]
[1737831278860,0.0352,105070.0,105060.0,0.6688235]
[1737831279169,0.06554269,105080.0,105070.0,0.152301]
[1737831279469,0.06554269,105080.0,105070.0,0.616906]
[1737831280259,0.06854269,105080.0,105070.0,0.616906]
[1737831280873,0.06854269,105080.0,105070.0,0.65022412]
[1737831282375,0.03614269,105080.0,105070.0,0.65022412]
[1737831282672,0.03614269,105080.0,105070.0,0.68142412]
[1737831287357,0.00314269,105080.0,105070.0,0.68142412]
[1737831288070,0.00314269,105080.0,105070.0,1.47754426]
[1737831289173,0.00575243,105080.0,105070.0,1.47754426]
[1737831291976,0.00575243,105080.0,105070.0,1.25015108]
[1737831295177,0.00575243,105080.0,105070.0,1.31987108]
[1737831297770,0.03855243,105080.0,105070.0,1.31987108]
[1737831297970,0.03855243,105080.0,105070.0,1.20345046]
[1737831298172,0.06905243,105080.0,105070.0,1.23676855]
[1737831298979,0.06905243,105080.0,105070.0,1.16704855]
[1737831300579,0.06905243,105080.0,105070.0,1.21895105]
[1737831300881,0.06905243,105080.0,105070.0,0.82596264]
[1737831303378,0.06605243,105080.0,105070.0,0.82596264]
[1737831303575,0.06705243,105080.0,105070.0,0.82596264]
[1737831304680,0.06705243,105080.0,105070.0,0.46516264]
[1737831304978,0.06705243,105080.0,105070.0,1.11020411]
[1737831306170,0.06705243,105080.0,105070.0,1.11020691]
[1737831308167,0.27124193,105080.0,105070.0,0.69750441]
[1737831308482,0.21933943,105080.0,105070.0,0.63619182]
[1737831308880,0.68394443,105080.0,105070.0,0.39866743]
[1737831309182,0.68394443,105080.0,105060.0,0.62310413]
[1737831309183,0.152301,105070.0,105060.0,0.62310413]
[1737831309382,0.5650035,105070.0,105060.0,0.62310413]
[1737831309576,0.8650035,105070.0,105060.0,0.62310413]
[1737831310269,0.86761324,105070.0,105060.0,0.62310413]
[1737831311173,0.86861324,105070.0,105060.0,0.62310413]
[1737831311674,0.89582776,105070.0,105060.0,0.62310413]
[1737831312272,0.92752776,105070.0,105060.0,0.62310413]
[1737831312473,0.62752776,105070.0,105060.0,0.62310413]
[1737831313080,0.92752776,105070.0,105060.0,0.62310413]
[1737831313271,0.152316,105060.0,105050.0,0.00014269]
[1737831313577,0.65333302,105060.0,105050.0,0.00014269]
[1737831314282,0.65594276,105060.0,105050.0,0.00014269]
[1737831317776,0.66522894,105060.0,105050.0,0.00014269]
[1737831319087,0.65594276,105060.0,105050.0,0.00014269]
[1737831328179,0.65594276,105060.0,105030.0,0.0301]
[1737831328180,0.152345,105040.0,105030.0,0.0301]
[1737831328385,0.59487176,105040.0,105030.0,0.0301]
[1737831328688,0.51575474,105040.0,105030.0,0.0301]
[1737831329296,0.51575474,105040.0,105030.0,0.0321]
[1737831329492,0.51575474,105040.0,105030.0,0.184459]
[1737831329992,0.51575474,105040.0,105030.0,0.217259]
[1737831332401,0.51575474,105040.0,105030.0,0.0649]
[1737831333695,0.56769516,105040.0,105030.0,0.0649]
[1737831338700,0.61963558,105040.0,105030.0,0.0649]
[1737831338896,0.61963558,105040.0,105030.0,0.0321]
[1737831339490,0.56769516,105040.0,105030.0,0.0321]
[1737831339793,0.61963558,105040.0,105030.0,0.0321]
[1737831339993,0.733065,105040.0,105030.0,0.0321]
[1737831340700,0.68112458,105040.0,105030.0,0.0321]
[1737831343808,0.733065,105040.0,105030.0,0.0321]
[1737831344007,0.68112458,105040.0,105030.0,0.0321]
[1737831344900,0.71152458,105040.0,105030.0,0.0321]
[1737831345106,0.74032578,105040.0,105030.0,0.0321]
[1737831345404,0.7922662,105040.0,105030.0,0.0321]
[1737831346397,1.1530662,105040.0,105030.0,0.0321]
[1737831348194,1.18121763,105040.0,105030.0,0.0321]
[1737831348999,1.12927721,105040.0,105030.0,0.0321]
[1737831349303,1.18121763,105040.0,105030.0,0.002]
[1737831349506,0.152359,105030.0,105020.0,0.00014269]
[1737831349697,0.56509942,105030.0,105020.0,0.00014269]
[1737831350094,0.56509942,105030.0,105020.0,0.15251669]
[1737831350399,0.51576874,105030.0,105020.0,0.20445711]
[1737831350704,0.20690916,105030.0,105020.0,0.00014269]
[1737831350911,0.56770916,105030.0,105020.0,0.00014269]
[1737831351602,0.56770916,105030.0,105020.0,0.0334837]
[1737831351801,0.56870916,105030.0,105020.0,0.00814269]
[1737831352002,0.65932487,105030.0,105020.0,0.19385782]
[1737831352207,0.65932487,105030.0,105020.0,0.22351669]
[1737831353207,0.65932487,105030.0,105020.0,0.25685748]
[1737831353401,0.65932487,105030.0,105020.0,0.31821996]
[1737831353801,0.65932487,105030.0,105020.0,0.26627954]
[1737831354905,0.71126529,105030.0,105020.0,0.01756475]
[1737831355110,0.74366529,105030.0,105020.0,0.01756475]
[1737831355809,0.74366529,105030.0,105020.0,0.16993875]
[1737831356404,0.74366529,105030.0,105020.0,0.01756475]
[1737831356798,0.85773478,105030.0,105020.0,0.01756475]
[1737831359601,0.85773478,105030.0,105020.0,0.16993875]
[1737831360706,0.80579436,105030.0,105020.0,0.16993875]
[1737831361103,0.69172487,105030.0,105020.0,0.16993875]
[1737831361302,0.65932487,105030.0,105020.0,0.22187917]
[1737831361502,0.65932487,105030.0,105020.0,0.25347917]
[1737831362211,0.65932487,105030.0,105020.0,0.20153875]
[1737831363410,0.65932487,105030.0,105020.0,0.25347917]
[1737831363605,0.65932487,105030.0,105020.0,0.20153875]
[1737831366915,0.65932487,105030.0,105020.0,0.28069263]
[1737831367116,0.65932487,105030.0,105020.0,0.20153875]
[1737831371419,0.65932487,105030.0,105020.0,0.16993875]
[1737831371618,0.72062487,105030.0,105020.0,0.16993875]
[1737831372219,0.72062487,105030.0,105020.0,0.2032795]
[1737831372414,0.72062487,105030.0,105020.0,0.16993875]
[1737831373016,0.89100692,105030.0,105020.0,0.16993875]
[1737831373912,0.9701608,105030.0,105020.0,0.00814269]
[1737831378024,0.82760467,105030.0,105020.0,0.00814269]
[1737831378614,0.74845079,105030.0,105020.0,0.00814269]
[1737831380215,0.82760467,105030.0,105020.0,0.00814269]
[1737831383621,0.74845079,105030.0,105020.0,0.00814269]
[1737831383818,0.80040562,105030.0,105020.0,0.00814269]
[1737831390829,0.80040562,105030.0,105020.0,0.16051669]
[1737831397429,0.94312787,105030.0,105020.0,0.16051669]
[1737831398240,0.89117304,105030.0,105020.0,0.16051669]
[1737831399041,0.94312787,105030.0,105020.0,0.16051669]
[1737831401236,0.80040562,105030.0,105020.0,0.16051669]
[1737831401437,0.80040562,105030.0,105020.0,0.00814269]
[1737831416460,0.94325762,105030.0,105020.0,0.00814269]
[1737831421060,0.80040562,105030.0,105020.0,0.00814269]
[1737831431882,0.80040562,105030.0,105020.0,0.17952509]
[1737831432285,0.43960562,105030.0,105020.0,0.17952509]
[1737831439996,0.41210591,105030.0,105020.0,0.17952509]
[1737831441591,0.77290591,105030.0,105020.0,0.17952509]
[1737831445394,0.77290591,105030.0,105010.0,0.17135353]
[1737831445395,1.00000145,105030.0,105010.0,0.17135353]
[1737831445590,0.152388,105010.0,105000.0,0.41778193]
[1737831445801,0.61709766,105010.0,105000.0,0.41778193]
[1737831445996,0.68159766,105010.0,105000.0,0.41778193]
[1737831446201,0.68159766,105010.0,105000.0,0.4326727]
[1737831446406,0.6842074,105010.0,105000.0,0.4326727]
[1737831448997,0.6852074,105010.0,105000.0,0.4326727]
[1737831449197,0.69469929,105010.0,105000.0,0.4326727]
[1737831450098,0.69469929,105010.0,105000.0,0.01489073]
[1737831450099,0.92176657,105010.0,105000.0,0.01489073]
[1737831452098,0.152403,105000.0,104990.0,0.00014269]
[1737831452397,0.61711266,105000.0,104990.0,0.01503348]
[1737831452594,0.6197224,105000.0,104990.0,0.01503348]
[1737831453197,0.6207224,105000.0,104990.0,0.01503348]
[1737831454105,0.6207224,105000.0,104990.0,0.01503347]
[1737831455301,0.8429224,105000.0,104990.0,0.01503347]
[1737831457401,0.1457281,105000.0,104990.0,0.5802053]
[1737831457602,0.1457281,105000.0,104990.0,0.6456053]
[1737831457812,0.1457281,105000.0,104990.0,0.2848053]
[1737831459104,0.1447281,105000.0,104990.0,0.2858053]
[1737831459701,0.6579311,105000.0,104990.0,0.2858053]
[1737831460304,0.76184076,105000.0,104990.0,0.08143347]
[1737831460502,0.70988593,105000.0,104990.0,0.08143347]
[1737831460702,0.70988593,105000.0,104990.0,0.08143278]
[1737831461410,0.56776757,105000.0,104990.0,0.08143278]
[1737831462811,0.56776757,105000.0,104990.0,0.08143307]
[1737831464511,0.82354868,105000.0,104990.0,0.08143307]
[1737831466809,0.83286377,105000.0,104990.0,0.08143307]
[1737831469516,0.83286377,105000.0,104990.0,0.08143252]
[1737831471709,0.83286377,105000.0,104990.0,0.09106186]
[1737831471916,0.71920102,105000.0,104990.0,0.09106186]
[1737831473719,0.71920102,105000.0,104990.0,0.09106215]
[1737831475617,0.88974305,105000.0,104990.0,0.09106215]
[1737831476019,0.88974305,105000.0,104990.0,0.09106221]
[1737831476720,0.88974305,105000.0,104990.0,0.0910622]
[1737831479322,0.88974305,105000.0,104990.0,0.08143286]
[1737831479922,0.74762469,105000.0,104990.0,0.08143286]
[1737831480410,0.74762469,105000.0,104990.0,0.08143301]
[1737831485513,0.74762469,105000.0,104990.0,0.04903301]
[1737831485927,0.74762469,105000.0,104990.0,0.03414269]
[1737831486127,0.74762469,105000.0,104990.0,0.04903308]
[1737831488026,0.74762469,105000.0,104990.0,0.04903304]
[1737831488926,0.57708266,105000.0,104990.0,0.04903304]
[1737831491237,0.57708266,105000.0,104990.0,0.04903303]
[1737831491825,0.56776757,105000.0,104990.0,0.04903303]
[1737831492024,0.51581274,105000.0,104990.0,0.04903303]
[1737831492225,0.56776757,105000.0,104990.0,0.04903303]
[1737831492428,0.51581274,105000.0,104990.0,0.04903303]
[1737831492626,0.56776757,105000.0,104990.0,0.04903303]
[1737831492826,0.51581274,105000.0,104990.0,0.04903303]
[1737831493630,0.56776757,105000.0,104990.0,0.04903303]
[1737831493831,0.51581274,105000.0,104990.0,0.04903303]
[1737831499143,0.51581274,105000.0,104990.0,0.04903269]
[1737831500442,0.94156389,105000.0,104990.0,0.04903269]
[1737831503147,0.94156389,105000.0,104990.0,0.03414269]
[1737831503341,0.94156389,105000.0,104990.0,0.04903302]
[1737831503745,0.99351872,105000.0,104990.0,0.01603302]
[1737831503940,0.99351872,105000.0,104990.0,0.01603308]
[1737831508256,0.99351872,105000.0,104990.0,0.01603311]
[1737831512760,0.99351872,105000.0,104990.0,0.00114269]
[1737831514854,0.99351872,105000.0,104990.0,0.01603297]
[1737831519167,0.99351872,105000.0,104990.0,0.01603268]
[1737831519863,0.99351872,105000.0,104990.0,0.00114269]
[1737831522666,0.94156389,105000.0,104990.0,0.00114269]
[1737831528660,1.07767355,105000.0,104990.0,0.00114269]
[1737831528861,1.02571872,105000.0,104990.0,0.00114269]
[1737831535061,1.02571872,105000.0,104990.0,0.00014269]
[1737831537169,0.94156389,105000.0,104990.0,0.00014269]
[1737831537470,0.35369661,105000.0,104990.0,0.15255969]
[1737831537666,0.35369661,105000.0,104990.0,0.21665969]
[1737831539061,0.40565144,105000.0,104990.0,0.21665969]
[1737831539261,0.45760627,105000.0,104990.0,0.00014269]
[1737831539467,0.81840627,105000.0,104990.0,0.00014269]
[1737831539673,0.84860627,105000.0,104990.0,0.00014269]
[1737831540773,0.84960627,105000.0,104990.0,0.00014269]
[1737831541767,0.79765144,105000.0,104990.0,0.00014269]
[1737831541968,0.77040765,105000.0,104990.0,0.00014269]
[1737831542275,0.82236248,105000.0,104990.0,0.00014269]
[1737831542473,0.77040765,105000.0,104990.0,0.00014269]
[1737831546571,0.59896757,105000.0,104990.0,0.00014269]
[1737831552078,0.6509224,105000.0,104990.0,0.00014269]
[1737831552276,0.59896757,105000.0,104990.0,0.00014269]
[1737831556476,0.56876757,105000.0,104990.0,0.00014269]
[1737831556678,0.00360974,105000.0,104990.0,0.23601452]
[1737831556880,0.00360974,105000.0,104990.0,0.26601452]
[1737831561189,0.14639146,105000.0,104990.0,0.26601452]
[1737831562888,0.14639146,105000.0,104990.0,0.27589054]
[1737831563277,0.14639146,105000.0,104990.0,0.30923932]
[1737831563586,0.14639146,105000.0,104990.0,0.27589054]
[1737831563792,0.14639146,105000.0,104990.0,0.72199412]
[1737831564285,0.32373307,105010.0,105000.0,0.152403]
[1737831564486,0.32373307,105010.0,105000.0,0.28861266]
[1737831564681,0.32373307,105010.0,105000.0,0.32195844]
[1737831564882,0.32373307,105010.0,105000.0,0.27000361]
[1737831565283,0.152395,105010.0,105000.0,0.23665783]
[1737831566587,0.154395,105010.0,105000.0,0.23665783]
[1737831567286,0.002,105010.0,105000.0,0.28861266]
[1737831570385,0.11608802,105010.0,105000.0,0.28861266]
[1737831573595,0.11608802,105010.0,105000.0,0.23665783]
[1737831573895,0.11608802,105010.0,105000.0,0.28861266]
[1737831574284,0.11608802,105010.0,105000.0,0.30349915]
[1737831575291,0.11608802,105010.0,105000.0,0.28861266]
[1737831578285,0.11608802,105010.0,105000.0,0.30349915]
[1737831582391,0.11608802,105010.0,105000.0,0.28861266]
[1737831582596,0.11608802,105010.0,105000.0,0.30349915]
[1737831586386,0.11608802,105010.0,105000.0,0.3368449]
[1737831587596,0.11608802,105010.0,105000.0,0.66429915]
[1737831587794,0.11608802,105010.0,105000.0,0.69764362]
[1737831588602,0.002,105010.0,105000.0,0.69764362]
[1737831594499,0.002,105010.0,105000.0,0.86858095]
[1737831598299,0.25903276,105010.0,105000.0,1.09719087]
[1737831600907,0.25903276,105010.0,105000.0,1.1491457]
[1737831601204,0.25903276,105010.0,105000.0,1.19082089]
[1737831601597,0.25903276,105010.0,105000.0,1.19082124]
[1737831602103,0.25903276,105010.0,105000.0,1.14914386]
[1737831602902,1.47946435,105050.0,105000.0,1.14914386]
[1737831602903,1.02862552,105050.0,105000.0,2.17726689]
[1737831603209,0.01290891,105060.0,105050.0,0.15233]
[1737831603402,0.01290891,105060.0,105050.0,0.63192431]
[1737831603601,0.01290891,105060.0,105050.0,0.57996948]
[1737831604999,0.01290891,105060.0,105050.0,0.57996237]
[1737831605300,0.01390891,105060.0,105050.0,0.57996237]
[1737831605808,0.01390891,105060.0,105050.0,0.21916237]
[1737831606202,0.01390891,105060.0,105050.0,0.57996237]
[1737831606410,0.01390891,105060.0,105050.0,0.6319172]
[1737831606708,0.01390891,105060.0,105050.0,0.61703966]
[1737831607105,0.001,105060.0,105050.0,0.79369475]
[1737831608404,0.0337,105060.0,105050.0,0.79369475]
[1737831609811,0.0337,105060.0,105050.0,0.84564958]
[1737831610609,0.0337,105060.0,105050.0,0.85523106]
[1737831611505,0.0337,105060.0,105050.0,0.62662114]
[1737831611699,0.0337,105060.0,105050.0,0.57466631]
[1737831611903,0.0969,105060.0,105050.0,0.57466631]
[1737831627020,0.249216,105060.0,105050.0,0.52271148]
[1737831627215,0.30117083,105060.0,105050.0,0.52271148]
[1737831627418,0.249216,105060.0,105050.0,0.52271148]
[1737831627716,0.30117083,105060.0,105050.0,0.52271148]
[1737831628823,0.249216,105060.0,105050.0,0.57466631]
[1737831631713,0.30117083,105060.0,105050.0,0.57466631]
[1737831632115,0.30117083,105060.0,105050.0,0.7443506]
[1737831633317,0.249216,105060.0,105050.0,0.7443506]
[1737831636114,0.249216,105060.0,105050.0,0.57466631]
[1737831636329,0.33451787,105060.0,105050.0,0.80327623]
[1737831639924,0.33451787,105060.0,105050.0,0.83660511]
[1737831640817,0.33451787,105060.0,105050.0,1.39437742]
[1737831644824,0.3864727,105060.0,105050.0,1.38479594]
[1737831645026,0.79922753,105060.0,105050.0,0.99066706]
[1737831646628,0.79922753,105060.0,105050.0,0.83833706]
[1737831647930,0.85659235,105060.0,105050.0,0.39942356]
[1737831651834,0.70427635,105060.0,105040.0,0.32329933]
[1737831652039,0.20428583,105050.0,105040.0,0.32329933]
[1737831654835,0.20428583,105050.0,105040.0,0.32429933]
[1737831656241,0.28983024,105050.0,105040.0,0.32429933]
[1737831657339,0.29942635,105050.0,105040.0,0.32429933]
[1737831662237,0.08554441,105050.0,105040.0,0.42820899]
[1737831662439,0.08554441,105050.0,105040.0,0.88380899]
[1737831666439,0.10755,105090.0,105040.0,0.88380899]
[1737831666440,0.25506514,105110.0,105090.0,0.152273]
[1737831666744,0.0326,105130.0,105120.0,0.152229]